[Event "ONJK-C 2019"]
[Site "Borne"]
[Date "2019.08.07"]
[Round "5.2"]
[White "Malfliet, Alexander"]
[Black "De Heij, Mees"]
[Result "1/2-1/2"]
[ECO "B33"]
[WhiteElo "1491"]
[BlackElo "1545"]
[Annotator "NA"]
[PlyCount "83"]
[EventDate "2019.08.05"]
[EventType "swiss"]
[EventCountry "NED"]
[SourceTitle "playchess.com"]
[Source "ChessBase"]
[SourceQuality "1"]
[TimeControl "5400+30"]

1. e4 {[%emt 0:00:00]} c5 {[%emt 0:00:00]} 2. Nf3 {[%emt 0:00:00]} Nc6 {[%emt 0:00:00]} 3. d4 {[%emt 0:00:00]} cxd4 {[%emt 0:00:00]} 4. Nxd4 {[%emt 0:00:00]} Nf6 {[%emt 0:00:00]} 5. Nc3 {[%emt 0:00:00]} e5 {[%emt 0:00:00]} 6. Ndb5 {[%emt 0:00:00]} d6 {[%emt 0:00:09]} 7. Bg5 {[%emt 0:00:00]} a6 {[%emt 0:00:10]} 8. Na3 {[%emt 0:00:08]} b5 {[%emt 0:00:05]} 9. Bxf6 {[%emt 0:00:04]} gxf6 {[%emt 0:00:06]} 10. Nd5 {[%emt 0:00:12]} Bg7 {[%emt 0:00:35]} 11. c4 {[%emt 0:08:14]} b4 {[%emt 0:00:35]} 12. Nc2 {[%emt 0:01:52]} a5 {[%emt 0:00:41]} 13. Bd3 {[%emt 0:05:54]} O-O {[%emt 0:04:07]} 14. Qh5 {[%emt 0:12:23]} Rb8 {[%emt 0:04:52]} 15. b3 {[%emt 0:00:28]} Be6 {[%emt 0:01:09]} 16. O-O {[%emt 0:00:30]} Qd7 {[%emt 0:00:33]} 17. Rae1 {[%emt 0:01:40]} Bg4 {[%emt 0:01:28]} 18. Qh4 {[%emt 0:00:30]} f5 {[%emt 0:01:02]} 19. h3 {[%emt 0:00:26]} fxe4 {[%emt 0:00:25]} 20. Bxe4 {[%emt 0:00:07]} Bf5 {[%emt 0:00:14]} 21. Qg5 {[%emt 0:00:14]} Bg6 {[%emt 0:00:44]} 22. Nf6+ {[%emt 0:05:21]} Bxf6 {[%emt 0:00:11]} 23. Qxf6 {[%emt 0:00:07]} Qe7 {[%emt 0:03:30]} 24. Qf3 {[%emt 0:02:26]} Nd8 {[%emt 0:00:45]} 25. Ne3 {[%emt 0:00:58]} Ne6 {[%emt 0:01:38]} 26. Nd5 {[%emt 0:00:23]} Qd8 {[%emt 0:00:17]} 27. Qf6 {[%emt 0:10:40]} Re8 {[%emt 0:03:07]} 28. h4 {[%emt 0:00:39]} Nf4 {[%emt 0:02:37]} 29. Bxg6 {[%emt 0:04:23]} hxg6 {[%emt 0:02:10]} 30. Qxd8 {[%emt 0:00:10]} Rexd8 {[%emt 0:00:07]} 31. Nxf4 {[%emt 0:00:05]} exf4 {[%emt 0:00:07]} 32. Re4 {[%emt 0:00:08]} d5 {[%emt 0:00:13]} 33. Rxf4 {[%emt 0:00:16]} dxc4 {[%emt 0:02:55]} 34. Rxc4 {[%emt 0:00:33]} Rd2 {[%emt 0:00:08]} 35. Ra1 {[%emt 0:00:09]} Re8 {[%emt 0:00:15]} 36. a3 {[%emt 0:01:12]} bxa3 {[%emt 0:00:44]} 37. Rxa3 {[%emt 0:00:34]} Re1+ {[%emt 0:00:27]} 38. Kh2 {[%emt 0:00:05]} Rxf2 {[%emt 0:00:14]} 39. Rxa5 {[%emt 0:00:35]} Rb2 {[%emt 0:01:28]} 40. Ra8+ {[%emt 0:03:06]} Kg7 {[%emt 0:00:31]} 41. Rb8 {[%emt 0:00:05]} Re3 {[%emt 0:02:31]} 42. b4 {[%emt 0:00:28]} 1/2-1/2

[Event "ONJK-C 2019"]
[Site "Borne"]
[Date "2019.08.07"]
[Round "5.3"]
[White "Kumar, Prajit Sai"]
[Black "Goudriaan, Rafael"]
[Result "1-0"]
[ECO "D38"]
[WhiteElo "1574"]
[BlackElo "1719"]
[Annotator "NA"]
[PlyCount "77"]
[EventDate "2019.08.05"]
[EventType "swiss"]
[EventCountry "NED"]
[SourceTitle "playchess.com"]
[Source "ChessBase"]
[SourceQuality "1"]
[TimeControl "5400+30"]

1. d4 {[%emt 0:00:00]} d5 {[%emt 0:00:00]} 2. c4 {[%emt 0:00:00]} e6 {[%emt 0:00:00]} 3. cxd5 {[%emt 0:00:00]} exd5 {[%emt 0:00:00]} 4. Nc3 {[%emt 0:00:00]} Nf6 {[%emt 0:00:06]} 5. Nf3 {[%emt 0:00:04]} Bb4 {[%emt 0:00:33]} 6. Bd2 {[%emt 0:00:33]} O-O {[%emt 0:00:26]} 7. e3 {[%emt 0:00:10]} Bg4 {[%emt 0:00:10]} 8. Be2 {[%emt 0:00:22]} c6 {[%emt 0:00:20]} 9. O-O {[%emt 0:00:37]} Nbd7 {[%emt 0:00:20]} 10. a3 {[%emt 0:01:55]} Ba5 {[%emt 0:00:33]} 11. Ne1 {[%emt 0:05:09]} Bf5 {[%emt 0:01:01]} 12. Bd3 {[%emt 0:02:01]} Be6 {[%emt 0:00:24]} 13. Ne2 {[%emt 0:04:34]} Bc7 {[%emt 0:00:43]} 14. Qc2 {[%emt 0:01:50]} Rc8 {[%emt 0:00:57]} 15. f4 {[%emt 0:03:35]} Nb6 {[%emt 0:01:22]} 16. Nf3 {[%emt 0:02:25]} h6 {[%emt 0:01:02]} 17. Ng3 {[%emt 0:05:18]} Re8 {[%emt 0:01:00]} 18. Rae1 {[%emt 0:08:08]} Bb8 {[%emt 0:01:22]} 19. Bc3 {[%emt 0:05:46]} Bd7 {[%emt 0:01:06]} 20. Ne5 {[%emt 0:01:32]} Ng4 {[%emt 0:00:55]} 21. Rf3 {[%emt 0:04:05]} Bxe5 {[%emt 0:07:56]} 22. fxe5 {[%emt 0:00:44]} Nxh2 {[%emt 0:00:26]} 23. Kxh2 {[%emt 0:00:49]} Qh4+ {[%emt 0:00:22]} 24. Kg1 {[%emt 0:00:07]} Bg4 {[%emt 0:00:27]} 25. Nf5 {[%emt 0:02:22]} Qg5 {[%emt 0:00:19]} 26. Rf2 {[%emt 0:01:50]} Rcd8 {[%emt 0:00:41]} 27. Nd6 {[%emt 0:01:24]} Re7 {[%emt 0:00:20]} 28. Ba5 {[%emt 0:04:21]} h5 {[%emt 0:00:47]} 29. Bf5 {[%emt 0:01:36]} h4 {[%emt 0:01:03]} 30. Bxg4 {[%emt 0:00:31]} Qxg4 {[%emt 0:00:09]} 31. Qf5 {[%emt 0:01:46]} Qg3 {[%emt 0:01:02]} 32. Rf3 {[%emt 0:00:52]} Qg6 {[%emt 0:01:10]} 33. Qxg6 {[%emt 0:00:05]} fxg6 {[%emt 0:00:01]} 34. Bxb6 {[%emt 0:00:08]} axb6 {[%emt 0:00:02]} 35. Ref1 {[%emt 0:00:22]} Rdd7 {[%emt 0:00:24]} 36. Rf8+ {[%emt 0:00:31]} Kh7 {[%emt 0:00:01]} 37. R8f7 {[%emt 0:00:21]} c5 {[%emt 0:00:45]} 38. e6 {[%emt 0:01:14]} Rc7 {[%emt 0:00:44]} 39. Nb5 {[%emt 0:01:08]} 1-0

[Event "ONJK-C 2019"]
[Site "Borne"]
[Date "2019.08.07"]
[Round "5.4"]
[White "De Jong, Mats"]
[Black "De Vries, Fabian"]
[Result "0-1"]
[ECO "D53"]
[WhiteElo "1356"]
[BlackElo "1704"]
[Annotator "NA"]
[PlyCount "60"]
[EventDate "2019.08.05"]
[EventType "swiss"]
[EventCountry "NED"]
[SourceTitle "playchess.com"]
[Source "ChessBase"]
[SourceQuality "1"]
[TimeControl "5400+30"]

1. d4 {[%emt 0:00:00]} d5 {[%emt 0:00:00]} 2. c4 {[%emt 0:00:01]} c6 {[%emt 0:00:00]} 3. Nf3 {[%emt 0:00:06]} Nf6 {[%emt 0:00:00]} 4. Nc3 {[%emt 0:00:23]} e6 {[%emt 0:00:00]} 5. Bg5 {[%emt 0:00:12]} Nbd7 {[%emt 0:00:02]} 6. e3 {[%emt 0:00:16]} Be7 {[%emt 0:00:12]} 7. Bd3 {[%emt 0:01:07]} dxc4 {[%emt 0:00:13]} 8. Bxc4 {[%emt 0:00:08]} b5 {[%emt 0:00:03]} 9. Bd3 {[%emt 0:01:30]} a6 {[%emt 0:00:30]} 10. e4 {[%emt 0:01:58]} Bb7 {[%emt 0:00:55]} 11. O-O {[%emt 0:00:41]} O-O {[%emt 0:00:45]} 12. Qc2 {[%emt 0:02:46]} h6 {[%emt 0:01:01]} 13. Bxf6 {[%emt 0:01:15]} Bxf6 {[%emt 0:03:27]} 14. e5 {[%emt 0:00:48]} Be7 {[%emt 0:02:19]} 15. Ne4 {[%emt 0:00:55]} Qb6 {[%emt 0:01:24]} 16. a3 {[%emt 0:03:09]} c5 {[%emt 0:00:33]} 17. dxc5 {[%emt 0:01:14]} Nxc5 {[%emt 0:00:27]} 18. b4 {[%emt 0:01:23]} Nxd3 {[%emt 0:09:08]} 19. Qxd3 {[%emt 0:00:21]} Rfd8 {[%emt 0:00:14]} 20. Qe2 {[%emt 0:00:47]} a5 {[%emt 0:01:10]} 21. bxa5 {[%emt 0:06:09]} Rxa5 {[%emt 0:00:16]} 22. Rfb1 {[%emt 0:07:00]} Bxe4 {[%emt 0:04:35]} 23. Qxe4 {[%emt 0:00:32]} Rxa3 {[%emt 0:02:56]} 24. h3 {[%emt 0:01:26]} Rxa1 {[%emt 0:02:09]} 25. Rxa1 {[%emt 0:00:06]} b4 {[%emt 0:03:08]} 26. Rb1 {[%emt 0:02:50]} Bc5 {[%emt 0:01:22]} 27. Qc2 {[%emt 0:02:07]} Rb8 {[%emt 0:08:26]} 28. Rb3 {[%emt 0:01:05]} Ra8 {[%emt 0:00:36]} 29. Ne1 {[%emt 0:02:55]} Ra1 {[%emt 0:05:19]} 30. Qe4 {[%emt 0:03:42]} Bxf2+ {[%emt 0:00:59]} 0-1

[Event "ONJK-C 2019"]
[Site "Borne"]
[Date "2019.08.07"]
[Round "5.5"]
[White "Smeets, Kobe"]
[Black "Boeren, Jurriaan"]
[Result "1-0"]
[ECO "C18"]
[WhiteElo "1530"]
[BlackElo "1522"]
[Annotator "NA"]
[PlyCount "45"]
[EventDate "2019.08.05"]
[EventType "swiss"]
[EventCountry "NED"]
[SourceTitle "playchess.com"]
[Source "ChessBase"]
[SourceQuality "1"]
[TimeControl "5400+30"]

1. e4 {[%emt 0:00:00]} e6 {[%emt 0:00:00]} 2. d4 {[%emt 0:00:00]} d5 {[%emt 0:00:06]} 3. Nc3 {[%emt 0:00:00]} Bb4 {[%emt 0:00:00]} 4. e5 {[%emt 0:00:00]} c5 {[%emt 0:00:00]} 5. a3 {[%emt 0:00:00]} Bxc3+ {[%emt 0:00:00]} 6. bxc3 {[%emt 0:00:00]} Nc6 {[%emt 0:00:06]} 7. Qg4 {[%emt 0:00:25]} g6 {[%emt 0:01:03]} 8. Nf3 {[%emt 0:01:03]} Nge7 {[%emt 0:00:22]} 9. Bd3 {[%emt 0:01:38]} c4 {[%emt 0:01:29]} 10. Be2 {[%emt 0:00:06]} Nf5 {[%emt 0:01:01]} 11. Bg5 {[%emt 0:02:09]} Qa5 {[%emt 0:00:31]} 12. Kd2 {[%emt 0:01:15]} h5 {[%emt 0:03:40]} 13. Qf4 {[%emt 0:01:05]} Nb8 {[%emt 0:01:02]} 14. h3 {[%emt 0:01:14]} Nd7 {[%emt 0:00:45]} 15. g4 {[%emt 0:00:56]} h4 {[%emt 0:00:47]} 16. gxf5 {[%emt 0:01:11]} exf5 {[%emt 0:00:26]} 17. Bxh4 {[%emt 0:00:41]} Nf8 {[%emt 0:00:22]} 18. Ng5 {[%emt 0:01:16]} Qd8 {[%emt 0:00:28]} 19. Bg3 {[%emt 0:01:41]} a6 {[%emt 0:03:06]} 20. h4 {[%emt 0:01:08]} Ra7 {[%emt 0:05:37]} 21. h5 {[%emt 0:00:24]} gxh5 {[%emt 0:00:56]} 22. Bxh5 {[%emt 0:00:50]} Be6 {[%emt 0:00:29]} 23. Bxf7+ {[%emt 0:00:33]} 1-0

[Event "ONJK-C 2019"]
[Site "Borne"]
[Date "2019.08.07"]
[Round "5.6"]
[White "Dhaenens, Leon"]
[Black "Ang, Rufus"]
[Result "1-0"]
[ECO "A12"]
[WhiteElo "1583"]
[BlackElo "1498"]
[Annotator "NA"]
[PlyCount "69"]
[EventDate "2019.08.05"]
[EventType "swiss"]
[EventCountry "NED"]
[SourceTitle "playchess.com"]
[Source "ChessBase"]
[SourceQuality "1"]
[TimeControl "5400+30"]

1. c4 {[%emt 0:00:00]} c6 {[%emt 0:00:00]} 2. Nf3 {[%emt 0:00:00]} d5 {[%emt 0:00:00]} 3. b3 {[%emt 0:00:26]} Bf5 {[%emt 0:00:39]} 4. Bb2 {[%emt 0:00:38]} e6 {[%emt 0:00:15]} 5. g3 {[%emt 0:00:33]} Nf6 {[%emt 0:00:22]} 6. Bg2 {[%emt 0:01:47]} Bd6 {[%emt 0:00:21]} 7. O-O {[%emt 0:01:05]} Nbd7 {[%emt 0:04:48]} 8. Re1 {[%emt 0:01:59]} O-O {[%emt 0:01:45]} 9. d3 {[%emt 0:01:03]} Bb4 {[%emt 0:01:09]} 10. Nbd2 {[%emt 0:01:19]} Re8 {[%emt 0:02:01]} 11. a3 {[%emt 0:01:27]} Ba5 {[%emt 0:00:59]} 12. b4 {[%emt 0:01:48]} Bb6 {[%emt 0:00:17]} 13. e4 {[%emt 0:12:13]} dxe4 {[%emt 0:01:06]} 14. Nxe4 {[%emt 0:05:04]} Bg4 {[%emt 0:02:56]} 15. h3 {[%emt 0:07:19]} Bh5 {[%emt 0:01:04]} 16. Qc2 {[%emt 0:08:20]} a5 {[%emt 0:03:04]} 17. Nd6 {[%emt 0:04:21]} Rf8 {[%emt 0:00:57]} 18. Nxb7 {[%emt 0:03:15]} Qc7 {[%emt 0:00:54]} 19. Nxa5 {[%emt 0:03:18]} Bxa5 {[%emt 0:00:24]} 20. bxa5 {[%emt 0:00:36]} Rxa5 {[%emt 0:00:22]} 21. Bc3 {[%emt 0:04:30]} Ra6 {[%emt 0:01:40]} 22. Ne5 {[%emt 0:03:58]} Nxe5 {[%emt 0:00:23]} 23. Bxe5 {[%emt 0:00:56]} Qe7 {[%emt 0:00:09]} 24. a4 {[%emt 0:02:56]} Bg6 {[%emt 0:01:52]} 25. Qc3 {[%emt 0:02:35]} Rd8 {[%emt 0:00:17]} 26. Red1 {[%emt 0:01:17]} c5 {[%emt 0:02:32]} 27. a5 {[%emt 0:03:23]} Rd7 {[%emt 0:00:23]} 28. Rab1 {[%emt 0:02:31]} Rd8 {[%emt 0:00:36]} 29. Rb6 {[%emt 0:03:46]} Ra7 {[%emt 0:00:24]} 30. a6 {[%emt 0:01:13]} Rdd7 {[%emt 0:00:39]} 31. Qb3 {[%emt 0:01:33]} h6 {[%emt 0:00:23]} 32. Bb8 {[%emt 0:01:37]} Bh5 {[%emt 0:00:39]} 33. Rd2 {[%emt 0:01:39]} Kh7 {[%emt 0:02:54]} 34. Bxa7 {[%emt 0:00:55]} Rxa7 {[%emt 0:00:12]} 35. Rb7 {[%emt 0:00:07]} 1-0

[Event "ONJK-C 2019"]
[Site "Borne"]
[Date "2019.08.07"]
[Round "5.7"]
[White "Neisingh, Nils"]
[Black "Zaalmink, Bram"]
[Result "1/2-1/2"]
[ECO "C03"]
[WhiteElo "1710"]
[BlackElo "1367"]
[Annotator "NA"]
[PlyCount "125"]
[EventDate "2019.08.05"]
[EventType "swiss"]
[EventCountry "NED"]
[SourceTitle "playchess.com"]
[Source "ChessBase"]
[SourceQuality "1"]
[TimeControl "5400+30"]

1. e4 {[%emt 0:00:00]} e6 {[%emt 0:00:00]} 2. d4 {[%emt 0:00:00]} d5 {[%emt 0:00:00]} 3. Nd2 {[%emt 0:00:00]} Be7 {[%emt 0:00:00]} 4. c3 {[%emt 0:00:06]} c5 {[%emt 0:00:44]} 5. e5 {[%emt 0:03:46]} cxd4 {[%emt 0:01:25]} 6. cxd4 {[%emt 0:00:10]} Qb6 {[%emt 0:00:53]} 7. Ngf3 {[%emt 0:01:25]} Bd7 {[%emt 0:01:29]} 8. Be2 {[%emt 0:02:07]} Bb5 {[%emt 0:00:54]} 9. O-O {[%emt 0:00:25]} Nc6 {[%emt 0:01:43]} 10. Bxb5 {[%emt 0:02:19]} Qxb5 {[%emt 0:00:33]} 11. Nb1 {[%emt 0:18:25]} Rc8 {[%emt 0:03:58]} 12. Nc3 {[%emt 0:00:21]} Qb6 {[%emt 0:00:34]} 13. Re1 {[%emt 0:04:36]} Na5 {[%emt 0:04:51]} 14. Qa4+ {[%emt 0:08:05]} Nc6 {[%emt 0:04:45]} 15. h3 {[%emt 0:08:36]} a6 {[%emt 0:03:20]} 16. Re2 {[%emt 0:02:46]} Qb4 {[%emt 0:00:58]} 17. Be3 {[%emt 0:05:02]} Bd8 {[%emt 0:04:36]} 18. Qxb4 {[%emt 0:03:11]} Nxb4 {[%emt 0:00:05]} 19. a3 {[%emt 0:00:05]} Nc6 {[%emt 0:01:08]} 20. Rc1 {[%emt 0:01:47]} Nge7 {[%emt 0:00:56]} 21. Na4 {[%emt 0:03:56]} b6 {[%emt 0:02:18]} 22. Rec2 {[%emt 0:03:09]} h6 {[%emt 0:02:01]} 23. b4 {[%emt 0:02:39]} O-O {[%emt 0:01:21]} 24. Nd2 {[%emt 0:05:15]} f5 {[%emt 0:02:03]} 25. exf6 {[%emt 0:01:26]} Rxf6 {[%emt 0:01:45]} 26. Nf3 {[%emt 0:00:33]} Na7 {[%emt 0:03:12]} 27. Rxc8 {[%emt 0:01:09]} Naxc8 {[%emt 0:00:33]} 28. Ne5 {[%emt 0:01:38]} Nd6 {[%emt 0:00:33]} 29. Nd7 {[%emt 0:01:37]} Rf7 {[%emt 0:01:06]} 30. Ndxb6 {[%emt 0:01:31]} Nb7 {[%emt 0:01:39]} 31. Nd7 {[%emt 0:03:04]} a5 {[%emt 0:09:18]} 32. Ne5 {[%emt 0:00:45]} Rf6 {[%emt 0:02:31]} 33. Nc6 {[%emt 0:02:39]} Nxc6 {[%emt 0:02:37]} 34. Rxc6 {[%emt 0:00:01]} axb4 {[%emt 0:00:15]} 35. axb4 {[%emt 0:00:01]} Kf8 {[%emt 0:01:15]} 36. Nc5 {[%emt 0:01:20]} Nxc5 {[%emt 0:00:13]} 37. dxc5 {[%emt 0:06:18]} e5 {[%emt 0:01:44]} 38. Rxf6+ {[%emt 0:00:11]} Bxf6 {[%emt 0:00:07]} 39. b5 {[%emt 0:05:57]} Ke8 {[%emt 0:01:30]} 40. c6 {[%emt 0:00:46]} Bd8 {[%emt 0:00:35]} 41. b6 {[%emt 0:01:09]} d4 {[%emt 0:00:25]} 42. c7 {[%emt 0:00:13]} Bxc7 {[%emt 0:00:11]} 43. bxc7 {[%emt 0:00:06]} Kd7 {[%emt 0:00:11]} 44. Bd2 {[%emt 0:00:09]} Kxc7 {[%emt 0:00:06]} 45. Kf1 {[%emt 0:02:06]} Kc6 {[%emt 0:00:46]} 46. Ke2 {[%emt 0:00:14]} e4 {[%emt 0:00:22]} 47. f3 {[%emt 0:00:34]} e3 {[%emt 0:00:04]} 48. Bxe3 {[%emt 0:00:22]} dxe3 {[%emt 0:00:13]} 49. Kxe3 {[%emt 0:00:02]} Kd7 {[%emt 0:00:38]} 50. Kf4 {[%emt 0:00:07]} Ke8 {[%emt 0:00:37]} 51. g4 {[%emt 0:00:27]} g5+ {[%emt 0:00:43]} 52. Kf5 {[%emt 0:02:27]} Kf7 {[%emt 0:00:07]} 53. f4 {[%emt 0:00:19]} gxf4 {[%emt 0:00:25]} 54. Kxf4 {[%emt 0:00:01]} Kg6 {[%emt 0:00:32]} 55. h4 {[%emt 0:00:17]} Kf6 {[%emt 0:00:05]} 56. Ke4 {[%emt 0:00:53]} Ke6 {[%emt 0:00:54]} 57. Kd4 {[%emt 0:00:32]} Kd6 {[%emt 0:01:26]} 58. g5 {[%emt 0:00:34]} hxg5 {[%emt 0:00:06]} 59. hxg5 {[%emt 0:00:03]} Ke6 {[%emt 0:00:38]} 60. Ke4 {[%emt 0:00:08]} Kf7 {[%emt 0:00:32]} 61. Kf5 {[%emt 0:00:32]} Kg7 {[%emt 0:00:13]} 62. g6 {[%emt 0:00:04]} Kg8 {[%emt 0:00:32]} 63. Ke4 {[%emt 0:00:17]} 1/2-1/2

[Event "ONJK-C 2019"]
[Site "Borne"]
[Date "2019.08.07"]
[Round "5.8"]
[White "Wierenga, Jael"]
[Black "Knol, Daniel"]
[Result "1/2-1/2"]
[ECO "C54"]
[WhiteElo "1469"]
[BlackElo "1622"]
[Annotator "NA"]
[PlyCount "40"]
[EventDate "2019.08.05"]
[EventType "swiss"]
[EventCountry "NED"]
[SourceTitle "playchess.com"]
[Source "ChessBase"]
[SourceQuality "1"]
[TimeControl "5400+30"]

1. e4 {[%emt 0:00:00]} e5 {[%emt 0:01:09]} 2. Nf3 {[%emt 0:00:00]} Nc6 {[%emt 0:00:28]} 3. Bc4 {[%emt 0:00:23]} Bc5 {[%emt 0:00:13]} 4. c3 {[%emt 0:00:35]} Nf6 {[%emt 0:00:05]} 5. d3 {[%emt 0:00:32]} d6 {[%emt 0:00:49]} 6. O-O {[%emt 0:00:14]} O-O {[%emt 0:01:45]} 7. Bg5 {[%emt 0:01:15]} h6 {[%emt 0:01:10]} 8. Bh4 {[%emt 0:00:16]} Be6 {[%emt 0:00:29]} 9. Bb3 {[%emt 0:02:00]} Bb6 {[%emt 0:04:13]} 10. Re1 {[%emt 0:00:31]} Qe7 {[%emt 0:02:06]} 11. Nbd2 {[%emt 0:01:32]} Rfe8 {[%emt 0:04:09]} 12. Ba4 {[%emt 0:03:02]} Bd7 {[%emt 0:01:10]} 13. Nc4 {[%emt 0:01:44]} Nb8 {[%emt 0:09:21]} 14. Nxb6 {[%emt 0:01:22]} axb6 {[%emt 0:00:10]} 15. Bc2 {[%emt 0:00:29]} Bg4 {[%emt 0:00:12]} 16. d4 {[%emt 0:04:01]} Nbd7 {[%emt 0:02:35]} 17. h3 {[%emt 0:04:02]} Bh5 {[%emt 0:00:17]} 18. Re3 {[%emt 0:06:18]} g5 {[%emt 0:26:39]} 19. Bg3 {[%emt 0:02:02]} Bg6 {[%emt 0:02:01]} 20. Nd2 {[%emt 0:08:09]} Nh5 {[%emt 0:11:31]} 1/2-1/2

[Event "ONJK-C 2019"]
[Site "Borne"]
[Date "2019.08.07"]
[Round "5.9"]
[White "Yannopapas, Leontios"]
[Black "Arnold, Lorin"]
[Result "0-1"]
[ECO "D00"]
[WhiteElo "1428"]
[BlackElo "1583"]
[Annotator "NA"]
[PlyCount "136"]
[EventDate "2019.08.05"]
[EventType "swiss"]
[EventCountry "NED"]
[SourceTitle "playchess.com"]
[Source "ChessBase"]
[SourceQuality "1"]
[TimeControl "5400+30"]

1. d4 {[%emt 0:00:00]} d5 {[%emt 0:00:26]} 2. Nc3 {[%emt 0:00:00]} e6 {[%emt 0:00:02]} 3. Bf4 {[%emt 0:00:04]} Bd6 {[%emt 0:00:19]} 4. e3 {[%emt 0:03:57]} Bxf4 {[%emt 0:04:56]} 5. exf4 {[%emt 0:00:08]} f5 {[%emt 0:01:26]} 6. Nf3 {[%emt 0:01:18]} Nf6 {[%emt 0:00:06]} 7. Bd3 {[%emt 0:01:32]} O-O {[%emt 0:00:00]} 8. O-O {[%emt 0:01:28]} Ne4 {[%emt 0:02:06]} 9. Re1 {[%emt 0:03:23]} h6 {[%emt 0:00:41]} 10. Ne5 {[%emt 0:03:36]} Nd7 {[%emt 0:00:24]} 11. Qh5 {[%emt 0:12:27]} Nxe5 {[%emt 0:02:24]} 12. fxe5 {[%emt 0:02:24]} Bd7 {[%emt 0:00:23]} 13. Bxe4 {[%emt 0:04:20]} fxe4 {[%emt 0:00:04]} 14. Re3 {[%emt 0:03:23]} Be8 {[%emt 0:01:20]} 15. Qg4 {[%emt 0:01:10]} Qe7 {[%emt 0:00:54]} 16. Rh3 {[%emt 0:03:11]} Kh8 {[%emt 0:01:56]} 17. Re1 {[%emt 0:01:25]} Rf5 {[%emt 0:00:20]} 18. Nxd5 {[%emt 0:03:41]} exd5 {[%emt 0:02:00]} 19. Qxf5 {[%emt 0:01:22]} Bd7 {[%emt 0:00:08]} 20. Qh5 {[%emt 0:01:47]} Bxh3 {[%emt 0:00:56]} 21. Qxh3 {[%emt 0:00:13]} c5 {[%emt 0:01:39]} 22. c3 {[%emt 0:00:35]} cxd4 {[%emt 0:00:38]} 23. cxd4 {[%emt 0:00:11]} Qb4 {[%emt 0:00:08]} 24. Qc3 {[%emt 0:00:16]} Qxc3 {[%emt 0:01:00]} 25. bxc3 {[%emt 0:00:07]} Rc8 {[%emt 0:00:04]} 26. Re3 {[%emt 0:00:32]} b5 {[%emt 0:01:05]} 27. f3 {[%emt 0:00:39]} exf3 {[%emt 0:01:00]} 28. gxf3 {[%emt 0:00:17]} g5 {[%emt 0:00:11]} 29. Kg2 {[%emt 0:01:45]} Kg7 {[%emt 0:00:10]} 30. Kg3 {[%emt 0:00:40]} b4 {[%emt 0:06:23]} 31. cxb4 {[%emt 0:02:44]} Rc4 {[%emt 0:00:05]} 32. Ra3 {[%emt 0:03:20]} Rxb4 {[%emt 0:01:28]} 33. Rxa7+ {[%emt 0:01:04]} Kg6 {[%emt 0:02:05]} 34. a4 {[%emt 0:03:23]} Rxd4 {[%emt 0:00:08]} 35. a5 {[%emt 0:00:35]} Ra4 {[%emt 0:01:58]} 36. a6 {[%emt 0:00:18]} Kf5 {[%emt 0:00:14]} 37. e6 {[%emt 0:18:45]} Kxe6 {[%emt 0:03:44]} 38. Rh7 {[%emt 0:00:18]} d4 {[%emt 0:15:57]} 39. Rxh6+ {[%emt 0:00:33]} Ke5 {[%emt 0:00:30]} 40. Kf2 {[%emt 0:03:02]} Ra2+ {[%emt 0:04:04]} 41. Ke1 {[%emt 0:00:29]} Kf4 {[%emt 0:10:03]} 42. Rb6 {[%emt 0:10:08]} Kxf3 {[%emt 0:03:39]} 43. Rb3+ {[%emt 0:01:16]} Ke4 {[%emt 0:00:30]} 44. Rg3 {[%emt 0:00:23]} Rxa6 {[%emt 0:03:49]} 45. Rxg5 {[%emt 0:00:24]} Ra1+ {[%emt 0:01:51]} 46. Kf2 {[%emt 0:00:53]} Ra2+ {[%emt 0:03:41]} 47. Kg1 {[%emt 0:01:37]} d3 {[%emt 0:00:48]} 48. Kf1 {[%emt 0:03:11]} Ra1+ {[%emt 0:01:42]} 49. Kf2 {[%emt 0:00:23]} d2 {[%emt 0:00:22]} 50. Rg4+ {[%emt 0:02:37]} Kf5 {[%emt 0:00:11]} 51. Rd4 {[%emt 0:00:51]} d1=Q {[%emt 0:00:10]} 52. Rxd1 {[%emt 0:00:11]} Rxd1 {[%emt 0:00:04]} 53. h4 {[%emt 0:00:05]} Rh1 {[%emt 0:00:06]} 54. Kg3 {[%emt 0:00:07]} Kg6 {[%emt 0:00:15]} 55. Kg4 {[%emt 0:00:05]} Kh6 {[%emt 0:00:18]} 56. Kg3 {[%emt 0:00:13]} Kh5 {[%emt 0:00:06]} 57. Kg2 {[%emt 0:00:05]} Rxh4 {[%emt 0:00:05]} 58. Kf3 {[%emt 0:00:07]} Kg5 {[%emt 0:00:13]} 59. Ke3 {[%emt 0:00:07]} Rf4 {[%emt 0:00:10]} 60. Kd3 {[%emt 0:00:18]} Kf5 {[%emt 0:00:22]} 61. Ke3 {[%emt 0:00:40]} Ke5 {[%emt 0:00:15]} 62. Kd3 {[%emt 0:00:09]} Re4 {[%emt 0:00:04]} 63. Kc2 {[%emt 0:00:10]} Re3 {[%emt 0:00:09]} 64. Kd2 {[%emt 0:00:03]} Kd4 {[%emt 0:00:06]} 65. Kc2 {[%emt 0:00:14]} Rd3 {[%emt 0:00:06]} 66. Kb1 {[%emt 0:00:03]} Rd2 {[%emt 0:00:10]} 67. Ka1 {[%emt 0:00:09]} Kc3 {[%emt 0:00:10]} 68. Kb1 {[%emt 0:00:06]} Rh2 {[%emt 0:00:11]} 0-1

[Event "ONJK-C 2019"]
[Site "Borne"]
[Date "2019.08.07"]
[Round "5.10"]
[White "Tiggelman, Vincent"]
[Black "De Rooij, Kevin"]
[Result "1/2-1/2"]
[ECO "B40"]
[WhiteElo "1358"]
[BlackElo "1465"]
[Annotator "NA"]
[PlyCount "36"]
[EventDate "2019.08.05"]
[EventType "swiss"]
[EventCountry "NED"]
[SourceTitle "playchess.com"]
[Source "ChessBase"]
[SourceQuality "1"]
[TimeControl "5400+30"]

1. e4 {[%emt 0:00:00]} c5 {[%emt 0:00:00]} 2. Nf3 {[%emt 0:00:00]} e6 {[%emt 0:00:00]} 3. Nc3 {[%emt 0:00:00]} Nc6 {[%emt 0:00:01]} 4. e5 {[%emt 0:00:00]} a6 {[%emt 0:00:42]} 5. g3 {[%emt 0:03:36]} Qc7 {[%emt 0:01:29]} 6. Qe2 {[%emt 0:12:06]} g6 {[%emt 0:03:18]} 7. d3 {[%emt 0:02:47]} Bg7 {[%emt 0:00:49]} 8. Bf4 {[%emt 0:00:21]} Nge7 {[%emt 0:02:15]} 9. Bg2 {[%emt 0:01:56]} Nf5 {[%emt 0:03:54]} 10. O-O-O {[%emt 0:11:54]} O-O {[%emt 0:05:51]} 11. Rde1 {[%emt 0:02:37]} b5 {[%emt 0:04:48]} 12. h4 {[%emt 0:01:13]} Bb7 {[%emt 0:03:03]} 13. Rh2 {[%emt 0:01:31]} Ncd4 {[%emt 0:00:56]} 14. Nxd4 {[%emt 0:00:50]} Nxd4 {[%emt 0:00:14]} 15. Qe3 {[%emt 0:01:36]} Bxg2 {[%emt 0:00:11]} 16. Rxg2 {[%emt 0:00:08]} Nf5 {[%emt 0:00:16]} 17. Qe2 {[%emt 0:00:23]} Nd4 {[%emt 0:00:05]} 18. Qe3 {[%emt 0:00:12]} Nf5 {[%emt 0:00:04]} 1/2-1/2